[Event "XVI Open Internacional Villa de Ibi"]
[Site "Ibi, Spain"]
[Date "2018.09.09"]
[Round "7.5"]
[White "Arias Igual, Alejandro"]
[Black "Kovacevic, Slobodan"]
[Result "0-1"]
[TimeControl "15' + 2'' por jugada"]
[WhiteElo "2260"]
[BlackElo "2252"]

1. e4 {[%clk 00:15:03]} c5 {[%clk 00:15:04]} 2. Nf3 {[%clk 00:15:00]} e6 {[%clk
00:15:05]} 3. c3 {[%clk 00:14:46]} {[%emt 00:00:10]} Nc6 {[%clk 00:15:04]}
{[%emt 00:00:34]} 4. d4 {[%clk 00:14:21]} {[%emt 00:00:03]} d5 {[%clk
00:15:05]} 5. exd5 {[%clk 00:14:17]} {[%emt 00:00:04]} exd5 {[%clk 00:15:06]} 6.
Be2 {[%clk 00:14:04]} {[%emt 00:00:14]} Bd6 {[%clk 00:15:04]} {[%emt 00:00:04]}
7. O-O {[%clk 00:13:57]} {[%emt 00:00:08]} Nge7 {[%clk 00:15:05]} {[%emt
00:00:03]} 8. dxc5 {[%clk 00:13:49]} {[%emt 00:00:07]} Bxc5 {[%clk 00:15:05]}
{[%emt 00:00:12]} 9. Nbd2 {[%clk 00:13:48]} O-O {[%clk 00:15:02]} 10. Nb3
{[%clk 00:13:49]} Bb6 {[%clk 00:15:03]} {[%emt 00:00:03]} 11. Nfd4 {[%clk
00:13:36]} {[%emt 00:00:16]} Nf5 {[%clk 00:15:02]} {[%emt 00:00:24]} 12. Bd3
{[%clk 00:13:13]} {[%emt 00:00:04]} Ncxd4 {[%clk 00:14:38]} {[%emt 00:00:21]}
13. Nxd4 {[%clk 00:13:06]} {[%emt 00:00:12]} Nxd4 {[%clk 00:14:22]} {[%emt
00:00:15]} 14. cxd4 {[%clk 00:13:06]} {[%emt 00:00:34]} Qf6 {[%clk 00:14:16]}
15. Qh5 {[%clk 00:12:00]} {[%emt 00:00:46]} h6 {[%clk 00:13:34]} {[%emt
00:00:44]} 16. Qxd5 {[%clk 00:11:42]} {[%emt 00:00:24]} Bxd4 {[%clk 00:10:45]}
{[%emt 00:02:45]} 17. Qe4 {[%clk 00:11:21]} {[%emt 00:00:31]} g6 {[%clk
00:10:44]} {[%emt 00:00:07]} 18. Qf4 {[%clk 00:10:24]} {[%emt 00:00:46]} Qxf4
{[%clk 00:10:30]} {[%emt 00:00:16]} 19. Bxf4 {[%clk 00:10:24]} {[%emt
00:00:39]} g5 {[%clk 00:10:31]} 20. Bg3 {[%clk 00:10:06]} {[%emt 00:00:06]}
Bxb2 {[%clk 00:10:24]} 21. Rab1 {[%clk 00:10:02]} Bg7 {[%clk 00:10:08]} {[%emt
00:00:11]} 22. Rfe1 {[%clk 00:09:33]} {[%emt 00:00:31]} Be6 {[%clk 00:10:02]}
{[%emt 00:00:24]} 23. Rxb7 {[%clk 00:09:18]} {[%emt 00:00:12]} Bxa2 {[%clk
00:09:56]} 24. h4 {[%clk 00:08:30]} {[%emt 00:00:54]} gxh4 {[%clk 00:09:42]}
{[%emt 00:00:10]} 25. Bxh4 {[%clk 00:07:05]} {[%emt 00:01:26]} a5 {[%clk
00:09:43]} {[%emt 00:00:19]} 26. Re3 {[%clk 00:05:30]} {[%emt 00:01:30]} a4
{[%clk 00:09:17]} {[%emt 00:00:31]} 27. Rg3 {[%clk 00:05:02]} {[%emt 00:00:16]}
Kh8 {[%clk 00:09:18]} {[%emt 00:00:37]} 28. Rb6 {[%clk 00:04:51]} {[%emt
00:00:18]} Be6 {[%clk 00:09:05]} 29. Be7 {[%clk 00:03:58]} {[%emt 00:00:32]}
Rfb8 {[%clk 00:09:06]} {[%emt 00:00:03]} 30. Rxb8+ {[%clk 00:03:37]} {[%emt
00:00:24]} Rxb8 {[%clk 00:09:07]} 31. Bc2 {[%clk 00:03:17]} {[%emt 00:00:46]}
Rb2 {[%clk 00:08:42]} 32. Rxg7 {[%clk 00:02:33]} {[%emt 00:00:44]} Kxg7 {[%clk
00:08:42]} {[%emt 00:00:20]} 33. Bxa4 {[%clk 00:02:33]} Kg6 {[%clk 00:08:14]}
{[%emt 00:00:14]} 34. Bc6 {[%clk 00:02:21]} {[%emt 00:00:14]} Rb6 {[%clk
00:08:08]} {[%emt 00:00:29]} 35. Bf3 {[%clk 00:02:19]} Bf5 {[%clk 00:08:06]}
{[%emt 00:00:06]} 36. Bc5 {[%clk 00:02:13]} Rb1+ {[%clk 00:07:57]} 37. Kh2
{[%clk 00:02:14]} {[%emt 00:00:08]} h5 {[%clk 00:07:51]} {[%emt 00:00:04]} 38.
Kg3 {[%clk 00:02:07]} {[%emt 00:00:08]} Rc1 {[%clk 00:07:46]} {[%emt 00:00:20]}
39. Be3 {[%clk 00:02:03]} Rh1 {[%clk 00:07:46]} 40. Kf4 {[%clk 00:01:53]}
{[%emt 00:00:05]} Rh4+ {[%clk 00:07:26]} {[%emt 00:00:22]} 41. Kg3 {[%clk
00:01:52]} {[%emt 00:00:34]} Rc4 {[%clk 00:07:24]} 42. Bd5 {[%clk 00:01:47]}
Rc3 {[%clk 00:07:14]} 43. Bf3 {[%clk 00:01:47]} Ra3 {[%clk 00:07:12]} {[%emt
00:00:03]} 44. Bc5 {[%clk 00:01:47]} Rc3 {[%clk 00:07:05]} {[%emt 00:00:15]} 45.
Bd4 {[%clk 00:01:47]} Rd3 {[%clk 00:07:06]} 46. Be3 {[%clk 00:01:48]} Rb3
{[%clk 00:07:06]} 47. Bd4 {[%clk 00:01:46]} {[%emt 00:00:09]} Be4 {[%clk
00:07:05]} 48. Be3 {[%clk 00:01:46]} Bxf3 {[%clk 00:07:06]} {[%emt 00:00:04]}
49. Kxf3 {[%clk 00:01:46]} Kf5 {[%clk 00:07:06]} {[%emt 00:00:03]} 50. Kg3
{[%clk 00:01:44]} {[%emt 00:00:03]} Rb4 {[%clk 00:07:05]} {[%emt 00:00:03]} 51.
Kf3 {[%clk 00:01:40]} {[%emt 00:00:05]} Rg4 {[%clk 00:07:05]} {[%emt 00:00:06]}
52. Bc5 {[%clk 00:01:37]} {[%emt 00:00:03]} Ke5 {[%clk 00:06:58]} {[%emt
00:00:06]} 53. Bb6 {[%clk 00:01:33]} {[%emt 00:00:05]} Kd5 {[%clk 00:06:56]}
{[%emt 00:00:04]} 54. Be3 {[%clk 00:01:25]} {[%emt 00:00:11]} Kc4 {[%clk
00:06:56]} {[%emt 00:00:08]} 55. g3 {[%clk 00:01:08]} {[%emt 00:00:17]} Kd3
{[%clk 00:06:54]} {[%emt 00:00:04]} 56. Bf4 {[%clk 00:01:03]} {[%emt 00:00:03]}
Kc2 {[%clk 00:06:54]} {[%emt 00:00:03]} 57. Ke4 {[%clk 00:01:01]} {[%emt
00:00:03]} Kd1 {[%clk 00:06:45]} {[%emt 00:00:10]} 58. Kf5 {[%clk 00:00:56]}
{[%emt 00:00:08]} Ke2 {[%clk 00:06:37]} {[%emt 00:00:07]} 59. Be3 {[%clk
00:00:39]} {[%emt 00:00:35]} Rg6 {[%clk 00:06:33]} 60. Bd4 {[%clk 00:00:27]}
{[%emt 00:00:06]} Kf3 {[%clk 00:06:34]} {[%emt 00:00:04]} 61. Be3 {[%clk
00:00:24]} {[%emt 00:00:04]} Kg2 {[%clk 00:05:41]} {[%emt 00:00:51]} 62. Bd4
{[%clk 00:00:25]} {[%emt 00:00:10]} Kh3 {[%clk 00:05:42]} 63. Be3 {[%clk
00:00:24]} Kg2 {[%clk 00:05:06]} {[%emt 00:00:36]} 64. Bd4 {[%clk 00:00:26]}
Kf3 {[%clk 00:05:07]} {[%emt 00:00:03]} 65. Be3 {[%clk 00:00:27]} Ke2 {[%clk
00:05:08]} 66. Bd4 {[%clk 00:00:28]} Kd3 {[%clk 00:05:09]} {[%emt 00:00:05]} 67.
Be3 {[%clk 00:00:30]} Kc4 {[%clk 00:05:11]} 68. Bf4 {[%clk 00:00:29]} Kd5
{[%clk 00:05:12]} {[%emt 00:00:03]} 69. Be3 {[%clk 00:00:26]} {[%emt 00:00:05]}
Kd6 {[%clk 00:05:13]} 70. Bf4+ {[%clk 00:00:27]} Ke7 {[%clk 00:05:14]} 71. Be3
{[%clk 00:00:28]} Kf8 {[%clk 00:05:15]} {[%emt 00:00:10]} 72. Bd4 {[%clk
00:00:28]} Kg8 {[%clk 00:05:16]} 73. Be3 {[%clk 00:00:30]} Kh7 {[%clk
00:05:05]} {[%emt 00:00:07]} 74. Bd4 {[%clk 00:00:31]} {[%emt 00:00:03]} Rd6
{[%clk 00:04:45]} {[%emt 00:00:18]} 75. Be3 {[%clk 00:00:28]} {[%emt 00:00:29]}
Kg7 {[%clk 00:04:39]} 76. Bf4 {[%clk 00:00:15]} {[%emt 00:00:06]} Rd5+ {[%clk
00:04:37]} 77. Ke4 {[%clk 00:00:16]} Rb5 {[%clk 00:04:36]} {[%emt 00:00:09]} 78.
Be3 {[%clk 00:00:17]} {[%emt 00:00:06]} Kg6 {[%clk 00:04:37]} 79. Kf4 {[%clk
00:00:17]} Rb4+ {[%clk 00:04:35]} 80. Ke5 {[%clk 00:00:11]} {[%emt 00:00:09]}
f6+ {[%clk 00:04:32]} 81. Ke6 {[%clk 00:00:12]} {[%emt 00:00:03]} f5 {[%clk
00:04:29]} {[%emt 00:00:07]} 82. Ke5 {[%clk 00:00:13]} {[%emt 00:00:15]} Re4+
{[%clk 00:04:28]} 83. Kd5 {[%clk 00:00:14]} Ra4 {[%clk 00:04:17]} 84. Ke5
{[%clk 00:00:15]} Rb4 {[%clk 00:04:19]} {[%emt 00:00:03]} 85. Kd5 {[%clk
00:00:16]} f4 {[%clk 00:04:12]} {[%emt 00:00:07]} 86. gxf4 {[%clk 00:00:09]}
{[%emt 00:00:07]} Kf5 {[%clk 00:04:13]} 87. Bc5 {[%clk 00:00:07]} {[%emt
00:00:09]} Rb7 {[%clk 00:04:13]} 88. f3 {[%clk 00:00:05]} {[%emt 00:00:07]} h4
{[%clk 00:04:14]} 89. Bg1 {[%clk 00:00:05]} {[%emt 00:00:12]} Rb2 {[%clk
00:04:14]} 90. Bd4 {[%clk 00:00:05]} Re2 {[%clk 00:04:13]} {Bandera} 0-1

[Event "XVI Open Internacional Villa de Ibi"]
[Site "Ibi, Spain"]
[Date "2018.09.09"]
[Round "7.6"]
[White "Galvan, Jesus"]
[Black "Camarena Gimenez, Rufino"]
[Result "1/2-1/2"]
[TimeControl "15' + 2'' por jugada"]
[WhiteElo "2185"]
[BlackElo "2339"]

1. b3 {[%clk 00:15:01]} {[%emt 00:00:04]} e5 {[%clk 00:14:58]} {[%emt
00:00:07]} 2. Bb2 {[%clk 00:15:02]} d6 {[%clk 00:14:56]} {[%emt 00:00:07]} 3.
e3 {[%clk 00:15:02]} Nf6 {[%clk 00:14:56]} 4. c4 {[%clk 00:14:58]} {[%emt
00:00:10]} g6 {[%clk 00:14:40]} {[%emt 00:00:12]} 5. d4 {[%clk 00:14:27]}
{[%emt 00:00:37]} Bg7 {[%clk 00:14:10]} {[%emt 00:00:28]} 6. Nc3 {[%clk
00:13:17]} {[%emt 00:01:14]} exd4 {[%clk 00:14:02]} {[%emt 00:00:10]} 7. Qxd4
{[%clk 00:12:49]} {[%emt 00:00:27]} Nc6 {[%clk 00:13:45]} {[%emt 00:00:35]} 8.
Qd2 {[%clk 00:12:50]} O-O {[%clk 00:13:37]} {[%emt 00:00:06]} 9. Nf3 {[%clk
00:12:51]} Re8 {[%clk 00:11:18]} {[%emt 00:02:13]} 10. Be2 {[%clk 00:12:51]}
{[%emt 00:00:37]} a5 {[%clk 00:11:18]} 11. O-O {[%clk 00:12:46]} Bf5 {[%clk
00:10:06]} {[%emt 00:01:01]} 12. Nd4 {[%clk 00:10:21]} {[%emt 00:02:36]} Nxd4
{[%clk 00:09:57]} {[%emt 00:00:04]} 13. exd4 {[%clk 00:10:22]} d5 {[%clk
00:09:43]} {[%emt 00:00:03]} 14. Nxd5 {[%clk 00:09:40]} {[%emt 00:00:42]} Nxd5
{[%clk 00:09:20]} {[%emt 00:00:24]} 15. cxd5 {[%clk 00:09:41]} {[%emt
00:00:10]} Be4 {[%clk 00:09:09]} {[%emt 00:00:09]} 16. Rfe1 {[%clk 00:09:19]}
{[%emt 00:00:21]} Bxd5 {[%clk 00:08:55]} {[%emt 00:00:31]} 17. Bc4 {[%clk
00:09:16]} {[%emt 00:00:07]} Rxe1+ {[%clk 00:07:15]} {[%emt 00:01:24]} 18. Rxe1
{[%clk 00:09:15]} {[%emt 00:00:30]} c6 {[%clk 00:06:54]} {[%emt 00:00:08]} 19.
Qf4 {[%clk 00:08:41]} {[%emt 00:00:24]} b5 {[%clk 00:05:23]} {[%emt 00:01:33]}
20. Bd3 {[%clk 00:04:01]} {[%emt 00:04:45]} a4 {[%clk 00:05:08]} {[%emt
00:00:14]} 21. Bc2 {[%clk 00:04:01]} {[%emt 00:00:32]} axb3 {[%clk 00:04:56]}
{[%emt 00:00:04]} 22. axb3 {[%clk 00:03:36]} {[%emt 00:00:06]} h5 {[%clk
00:03:55]} {[%emt 00:01:06]} 23. h3 {[%clk 00:03:34]} {[%emt 00:00:11]} Ra2
{[%clk 00:03:39]} {[%emt 00:00:08]} 24. Qc1 {[%clk 00:03:35]} {[%emt 00:00:41]}
Qh4 {[%clk 00:02:40]} {[%emt 00:01:07]} 25. Bb1 {[%clk 00:02:22]} {[%emt
00:00:30]} Ra8 {[%clk 00:02:01]} {[%emt 00:00:41]} 26. Qe3 {[%clk 00:02:20]}
{[%emt 00:00:34]} Qf6 {[%clk 00:01:19]} {[%emt 00:00:13]} 27. Qg3 {[%clk
00:01:36]} {[%emt 00:01:11]} Rd8 {[%clk 00:01:06]} 28. Re2 {[%clk 00:01:26]}
{[%emt 00:00:06]} Kh7 {[%clk 00:00:56]} {[%emt 00:00:09]} 29. Re5 {[%clk
00:01:15]} {[%emt 00:00:15]} Qd6 {[%clk 00:00:47]} {[%emt 00:00:26]} 30. Rxh5+
{[%clk 00:00:55]} {[%emt 00:00:05]} Kg8 {[%clk 00:00:44]} {[%emt 00:00:36]} 31.
Re5 {[%clk 00:00:41]} {[%emt 00:00:03]} Bxe5 {[%clk 00:00:44]} 32. dxe5 {[%clk
00:00:42]} Qe6 {[%clk 00:00:43]} 33. f4 {[%clk 00:00:34]} {[%emt 00:00:03]} Kf8
{[%clk 00:00:24]} {[%emt 00:00:17]} 34. f5 {[%clk 00:00:14]} {[%emt 00:00:22]}
gxf5 {[%emt 00:00:04]} 35. Qg5 Ke8 {[%clk 00:00:17]} {[%emt 00:00:24]} 36. Bxf5
{[%clk 00:00:15]} Qe7 {[%clk 00:00:19]} 37. Qg8+ {[%clk 00:00:05]} {[%emt
00:00:10]} Qf8 {[%clk 00:00:20]} 38. Qg5 {[%clk 00:00:06]} Bxb3 39. Qf6 {[%clk
00:00:05]} Qe7 {[%clk 00:00:15]} 40. Qxc6+ {[%clk 00:00:06]} {[%emt 00:00:30]}
Kf8 {[%clk 00:00:14]} 41. Qh6+ {[%clk 00:00:05]} {[%emt 00:00:03]} Ke8 {[%clk
00:00:14]} 42. Qc6+ {[%clk 00:00:04]} Kf8 {[%clk 00:00:15]} 43. Qh6+ {[%clk
00:00:03]} Ke8 {[%clk 00:00:16]} 44. Qc6+ {[%clk 00:00:04]} Kf8 {[%clk
00:00:17]} 45. Qh6+ {[%clk 00:00:04]} {[%emt 00:00:04]} Ke8 {[%clk 00:00:18]}
46. Qc6+ {[%clk 00:00:04]} Kf8 {[%clk 00:00:19]} 47. Qh6+ {[%clk 00:00:03]}
1/2-1/2

[Event "XVI Open Internacional Villa de Ibi"]
[Site "Ibi, Spain"]
[Date "2018.09.09"]
[Round "7.7"]
[White "Campos Gambuti, Luis Maria"]
[Black "Plaza Pardo, Jorge"]
[Result "1-0"]
[TimeControl "15' + 2'' por jugada"]
[WhiteElo "2382"]
[BlackElo "2094"]

1. d4 {[%clk 00:15:04]} Nf6 {[%clk 00:14:42]} {[%emt 00:00:10]} 2. Nc3 {[%clk
00:15:02]} {[%emt 00:00:11]} e6 {[%clk 00:14:40]} {[%emt 00:00:03]} 3. e4
{[%clk 00:15:03]} d5 {[%clk 00:14:39]} 4. Bg5 {[%clk 00:15:02]} {[%emt
00:00:03]} Be7 {[%clk 00:14:40]} 5. e5 {[%clk 00:15:02]} {[%emt 00:00:04]} Nfd7
{[%clk 00:14:41]} 6. Bxe7 {[%clk 00:15:03]} {[%emt 00:00:04]} Qxe7 {[%clk
00:14:42]} 7. f4 {[%clk 00:15:04]} Nc6 {[%clk 00:14:39]} {[%emt 00:00:03]} 8.
Nf3 {[%clk 00:15:01]} {[%emt 00:00:11]} Nb6 {[%clk 00:14:39]} {[%emt 00:00:03]}
9. b3 {[%clk 00:14:04]} {[%emt 00:01:05]} Bd7 {[%clk 00:14:18]} {[%emt
00:00:09]} 10. Qd2 {[%clk 00:13:44]} {[%emt 00:00:23]} O-O-O {[%clk 00:14:09]}
{[%emt 00:00:09]} 11. a4 {[%clk 00:13:43]} {[%emt 00:00:10]} Kb8 {[%clk
00:13:25]} {[%emt 00:00:44]} 12. a5 {[%clk 00:13:41]} {[%emt 00:00:04]} Nc8
{[%clk 00:13:25]} {[%emt 00:00:04]} 13. Na4 {[%clk 00:13:30]} {[%emt 00:00:06]}
b6 {[%clk 00:11:53]} {[%emt 00:01:40]} 14. axb6 {[%clk 00:13:09]} {[%emt
00:00:19]} cxb6 {[%clk 00:11:54]} {[%emt 00:00:03]} 15. Nc3 {[%clk 00:12:57]}
{[%emt 00:00:10]} f6 {[%clk 00:11:05]} {[%emt 00:00:56]} 16. Ba6 {[%clk
00:12:46]} {[%emt 00:00:08]} fxe5 {[%clk 00:10:17]} {[%emt 00:00:51]} 17. fxe5
{[%clk 00:11:37]} {[%emt 00:01:13]} Nb4 {[%clk 00:09:48]} {[%emt 00:00:32]} 18.
Be2 {[%clk 00:11:05]} {[%emt 00:00:30]} h6 {[%clk 00:09:27]} {[%emt 00:00:31]}
19. Nd1 {[%clk 00:10:52]} {[%emt 00:00:07]} g5 {[%clk 00:09:03]} {[%emt
00:00:44]} 20. Nf2 {[%clk 00:10:51]} Rdg8 {[%clk 00:08:37]} {[%emt 00:00:25]}
21. Ng4 {[%clk 00:10:39]} {[%emt 00:00:05]} Rg7 {[%clk 00:07:05]} {[%emt
00:01:31]} 22. c3 {[%clk 00:10:32]} {[%emt 00:00:15]} Nc6 {[%clk 00:07:03]} 23.
b4 {[%clk 00:10:32]} {[%emt 00:00:04]} Be8 {[%clk 00:06:41]} {[%emt 00:00:19]}
24. Nf6 {[%clk 00:10:32]} {[%emt 00:00:08]} Bg6 {[%clk 00:06:38]} 25. Bb5
{[%clk 00:10:25]} {[%emt 00:00:14]} Qc7 {[%clk 00:06:25]} {[%emt 00:00:10]} 26.
O-O {[%clk 00:10:10]} {[%emt 00:00:35]} N8e7 {[%clk 00:05:42]} {[%emt
00:00:26]} 27. Ra6 {[%clk 00:09:58]} {[%emt 00:00:22]} Rc8 {[%clk 00:03:08]}
{[%emt 00:02:29]} 28. Rfa1 {[%clk 00:09:55]} {[%emt 00:00:39]} Kb7 {[%clk
00:02:55]} {[%emt 00:00:03]} 29. Qe2 {[%clk 00:09:08]} {[%emt 00:00:26]} Ra8
{[%clk 00:02:42]} {[%emt 00:00:42]} 30. Nd2 {[%clk 00:08:45]} {[%emt 00:00:03]}
Nb8 {[%clk 00:00:59]} {[%emt 00:01:46]} 31. R6a3 {[%clk 00:08:41]} {[%emt
00:00:05]} Kc8 {[%clk 00:00:48]} {[%emt 00:00:10]} 32. Nf1 {[%clk 00:08:11]}
{[%emt 00:00:31]} Ng8 {[%clk 00:00:43]} {[%emt 00:00:27]} 33. Ne8 {[%clk
00:08:05]} Bxe8 {[%clk 00:00:40]} {[%emt 00:00:09]} 34. Bxe8 {[%clk 00:08:05]}
Nd7 {[%clk 00:00:28]} 35. Ne3 {[%clk 00:07:50]} {[%emt 00:00:17]} Ne7 {[%clk
00:00:20]} {[%emt 00:00:33]} 36. Qb5 {[%clk 00:07:08]} {[%emt 00:00:32]} Nc6
{[%clk 00:00:16]} 37. Ng4 {[%clk 00:07:02]} {[%emt 00:00:05]} Kd8 {[%clk
00:00:05]} {[%emt 00:00:24]} 38. Bxd7 {[%clk 00:06:42]} {[%emt 00:00:15]} Kxd7
{[%clk 00:00:05]} {[%emt 00:00:04]} 39. Nf6+ {[%clk 00:06:43]} Ke7 {[%clk
00:00:06]} 40. Ra6 {[%clk 00:06:32]} {[%emt 00:00:35]} Qb7 {[%emt 00:00:04]}
{Bandera} 1-0

[Event "XVI Open Internacional Villa de Ibi"]
[Site "Ibi, Spain"]
[Date "2018.09.09"]
[Round "8.2"]
[White "Giaccio, Alfredo"]
[Black "Plaskett, H James"]
[Result "1/2-1/2"]
[TimeControl "15' + 2'' por jugada"]
[WhiteElo "2442"]
[BlackElo "2450"]

1. e4 {[%clk 00:15:03]} c5 {[%clk 00:14:17]} {[%emt 00:00:45]} 2. Nf3 {[%clk
00:15:02]} {[%emt 00:00:11]} d6 {[%clk 00:14:15]} {[%emt 00:00:04]} 3. Nc3
{[%clk 00:14:58]} {[%emt 00:00:05]} e6 {[%clk 00:14:10]} {[%emt 00:00:06]} 4.
d4 {[%clk 00:14:58]} {[%emt 00:00:05]} cxd4 {[%clk 00:14:11]} 5. Nxd4 {[%clk
00:14:59]} Nf6 {[%clk 00:13:47]} {[%emt 00:00:22]} 6. Nb3 {[%clk 00:14:57]}
{[%emt 00:00:07]} a6 {[%clk 00:13:46]} {[%emt 00:00:05]} 7. f4 {[%clk
00:14:56]} Qc7 {[%clk 00:13:47]} 8. Bd3 {[%clk 00:14:56]} b5 {[%clk 00:13:48]}
{[%emt 00:00:09]} 9. Qe2 {[%clk 00:14:48]} {[%emt 00:00:06]} Nbd7 {[%clk
00:13:48]} 10. a4 {[%clk 00:14:30]} {[%emt 00:00:20]} b4 {[%clk 00:13:47]}
{[%emt 00:00:05]} 11. Nd1 {[%clk 00:14:31]} Bb7 {[%clk 00:13:21]} {[%emt
00:00:27]} 12. Nf2 {[%clk 00:14:30]} {[%emt 00:00:05]} a5 {[%clk 00:12:57]}
{[%emt 00:00:23]} 13. O-O {[%clk 00:13:59]} {[%emt 00:00:39]} Be7 {[%clk
00:12:57]} 14. Be3 {[%clk 00:13:06]} {[%emt 00:00:51]} O-O {[%clk 00:12:29]}
{[%emt 00:00:36]} 15. Rac1 {[%clk 00:10:54]} {[%emt 00:02:09]} d5 {[%clk
00:09:22]} {[%emt 00:03:09]} 16. e5 {[%emt 00:00:10]} Ne4 17. Nxe4 dxe4 18. Bb5
1/2-1/2

[Event "XVI Open Internacional Villa de Ibi"]
[Site "Ibi, Spain"]
[Date "2018.09.09"]
[Round "8.3"]
[White "Kovacevic, Slobodan"]
[Black "Sos Andreu, Eric"]
[Result "0-1"]
[TimeControl "15' + 2'' por jugada"]
[WhiteElo "2252"]
[BlackElo "2332"]

1. d4 {[%clk 00:14:31]} {[%emt 00:00:23]} Nf6 {[%clk 00:15:00]} {[%emt
00:00:04]} 2. Bg5 {[%clk 00:14:29]} Ne4 {[%clk 00:14:54]} {[%emt 00:00:07]} 3.
Bf4 {[%clk 00:14:27]} {[%emt 00:00:12]} c5 {[%clk 00:14:53]} {[%emt 00:00:04]}
4. d5 {[%clk 00:14:25]} Qb6 {[%clk 00:14:47]} {[%emt 00:00:08]} 5. Bc1 {[%clk
00:14:20]} {[%emt 00:00:03]} g6 {[%clk 00:14:21]} {[%emt 00:00:26]} 6. c3
{[%clk 00:14:11]} {[%emt 00:00:13]} Bg7 {[%clk 00:14:12]} {[%emt 00:00:25]} 7.
f3 {[%clk 00:14:07]} Nf6 {[%clk 00:14:09]} 8. e4 {[%clk 00:14:08]} {[%emt
00:00:03]} d6 {[%clk 00:14:08]} 9. a4 {[%clk 00:14:02]} {[%emt 00:00:05]} O-O
{[%clk 00:13:57]} {[%emt 00:00:12]} 10. Na3 {[%clk 00:14:02]} {[%emt 00:00:04]}
Qd8 {[%clk 00:13:00]} {[%emt 00:01:03]} 11. Ne2 {[%clk 00:13:55]} {[%emt
00:00:04]} e6 {[%clk 00:12:43]} {[%emt 00:00:21]} 12. c4 {[%clk 00:13:43]}
{[%emt 00:00:11]} exd5 {[%clk 00:12:32]} {[%emt 00:00:13]} 13. cxd5 {[%clk
00:13:42]} {[%emt 00:00:07]} Nbd7 {[%clk 00:12:26]} {[%emt 00:00:35]} 14. Nc4
{[%clk 00:13:28]} {[%emt 00:00:08]} Nb6 {[%clk 00:12:17]} 15. Nc3 {[%clk
00:13:23]} {[%emt 00:00:13]} Re8 {[%clk 00:12:09]} {[%emt 00:00:03]} 16. Bg5
{[%clk 00:13:08]} {[%emt 00:00:06]} Nxc4 {[%clk 00:10:55]} {[%emt 00:01:28]} 17.
Bxc4 {[%clk 00:12:58]} {[%emt 00:00:04]} Nxe4 {[%clk 00:10:32]} {[%emt
00:00:21]} 18. Bxd8 {[%clk 00:12:58]} {[%emt 00:00:05]} Nxc3+ {[%clk 00:10:32]}
{[%emt 00:00:10]} 19. Kd2 {[%clk 00:12:53]} Nxd1 {[%clk 00:10:27]} {[%emt
00:00:12]} 20. Raxd1 {[%clk 00:12:29]} {[%emt 00:00:17]} Rxd8 {[%clk 00:10:23]}
{[%emt 00:00:19]} 0-1

[Event "XVI Open Internacional Villa de Ibi"]
[Site "Ibi, Spain"]
[Date "2018.09.09"]
[Round "8.4"]
[White "Cano Gimenez, Vicente"]
[Black "Cruz Lledo, Pablo"]
[Result "1-0"]
[TimeControl "15' + 2'' por jugada"]
[WhiteElo "2288"]
[BlackElo "2436"]

1. Nf3 {[%clk 00:15:02]} {[%emt 00:00:27]} d5 {[%clk 00:15:03]} 2. g3 {[%clk
00:15:02]} Nf6 {[%clk 00:15:01]} {[%emt 00:00:07]} 3. Bg2 {[%clk 00:15:03]} e6
{[%clk 00:15:02]} 4. O-O {[%clk 00:15:01]} Be7 {[%clk 00:15:03]} 5. d4 {[%clk
00:15:01]} O-O {[%clk 00:15:03]} 6. c4 {[%clk 00:15:02]} {[%emt 00:00:04]} b6
{[%clk 00:15:04]} 7. Nc3 {[%clk 00:15:02]} Bb7 {[%clk 00:15:05]} 8. Ne5 {[%clk
00:15:02]} Nbd7 {[%clk 00:15:01]} {[%emt 00:00:19]} 9. Qa4 {[%clk 00:15:02]}
Nxe5 {[%clk 00:14:40]} {[%emt 00:00:07]} 10. dxe5 {[%clk 00:15:02]} {[%emt
00:00:03]} Ne4 {[%clk 00:14:38]} 11. Nxe4 {[%clk 00:15:02]} {[%emt 00:00:03]}
dxe4 {[%clk 00:14:38]} {[%emt 00:00:03]} 12. Rd1 {[%clk 00:15:00]} {[%emt
00:00:04]} Qe8 {[%clk 00:14:28]} {[%emt 00:00:19]} 13. Qc2 {[%clk 00:14:59]}
Qc6 {[%clk 00:14:00]} {[%emt 00:00:22]} 14. Rd4 {[%clk 00:14:59]} {[%emt
00:00:28]} Qc5 {[%clk 00:13:49]} {[%emt 00:00:06]} 15. Rd7 {[%clk 00:14:51]}
Rad8 {[%clk 00:12:43]} {[%emt 00:01:11]} 16. Be3 {[%clk 00:13:50]} {[%emt
00:00:50]} Qxe5 {[%clk 00:12:39]} {[%emt 00:00:38]} 17. Bf4 {[%clk 00:13:50]}
Qf6 {[%clk 00:11:54]} {[%emt 00:00:18]} 18. Rxc7 {[%clk 00:13:43]} {[%emt
00:00:12]} e5 {[%clk 00:11:32]} {[%emt 00:00:21]} 19. Be3 {[%clk 00:12:36]}
{[%emt 00:01:10]} Ba8 {[%clk 00:10:55]} {[%emt 00:01:14]} 20. Rxa7 {[%clk
00:12:27]} Bc5 {[%clk 00:10:35]} {[%emt 00:00:11]} 21. Bxc5 {[%clk 00:11:50]}
{[%emt 00:00:24]} bxc5 {[%clk 00:10:35]} {[%emt 00:00:16]} 22. Bxe4 {[%clk
00:11:34]} {[%emt 00:00:13]} Bxe4 {[%clk 00:10:25]} {[%emt 00:00:05]} 23. Qxe4
{[%clk 00:11:34]} {[%emt 00:00:04]} Rd2 {[%clk 00:10:25]} {[%emt 00:00:06]} 24.
b3 {[%clk 00:10:56]} {[%emt 00:00:32]} h5 {[%clk 00:10:14]} {[%emt 00:00:14]}
25. Re1 {[%clk 00:10:37]} {[%emt 00:00:42]} Rd4 {[%clk 00:09:55]} {[%emt
00:00:13]} 26. Qf3 {[%clk 00:10:26]} {[%emt 00:00:13]} Qg6 {[%clk 00:09:52]}
{[%emt 00:00:11]} 27. Ra8 {[%clk 00:10:03]} {[%emt 00:00:11]} Rxa8 {[%clk
00:09:42]} {[%emt 00:00:06]} 28. Qxa8+ {[%clk 00:10:04]} {[%emt 00:00:19]} Kh7
{[%clk 00:09:43]} 29. Qc8 {[%clk 00:09:46]} {[%emt 00:00:18]} Rd2 {[%clk
00:08:31]} {[%emt 00:01:02]} 30. Qxc5 {[%clk 00:09:33]} {[%emt 00:00:12]} Qe4
{[%clk 00:08:28]} {[%emt 00:00:19]} 31. Qe3 {[%clk 00:09:20]} {[%emt 00:00:07]}
Qxe3 {[%clk 00:08:14]} {[%emt 00:00:12]} 32. fxe3 {[%clk 00:09:21]} {[%emt
00:00:06]} Rxa2 {[%clk 00:08:14]} 33. Rc1 {[%clk 00:09:03]} {[%emt 00:00:16]}
Rb2 {[%clk 00:08:05]} {[%emt 00:00:28]} 34. Rc3 {[%clk 00:08:57]} {[%emt
00:00:09]} Kg6 {[%clk 00:07:51]} 35. c5 {[%clk 00:08:54]} {[%emt 00:00:10]} Ra2
{[%clk 00:07:02]} {[%emt 00:00:43]} 36. c6 {[%clk 00:08:51]} {[%emt 00:00:12]}
Ra8 {[%clk 00:07:03]} 37. b4 {[%clk 00:08:50]} Kf6 {[%clk 00:07:04]} 38. b5
{[%clk 00:08:50]} Ke6 {[%clk 00:07:05]} 39. b6 {[%clk 00:08:50]} {[%emt
00:00:11]} Kd6 {[%clk 00:07:06]} 40. b7 {[%clk 00:08:49]} {[%emt 00:00:03]}
Ra1+ {[%clk 00:07:06]} 41. Kf2 {[%clk 00:08:49]} Kc7 {[%clk 00:07:07]} 42. Rb3
{[%clk 00:08:50]} {[%emt 00:00:03]} 1-0